{"text_format":"1","workbook":"xlsx","n_sheets":5,"sheets":["Main Menu","Game 2x2","Game 3x3","Game 4x4","How to play"],"not_rendered":{"charts":0,"images":1,"macros":1,"external_links":0,"defined_names":3,"comments":0,"pivot_tables":0},"unopened":[],"bounds":{"document_bytes":16777216,"sheet_cells":100000,"rows_first":2000,"rows_last":500,"rows_between":2000,"halvings":0,"cell_chars":16384,"cell_head_chars":4096},"cells_cut":0,"cells_raw":0,"read":"whole","date_system":"1900"}

{"sheet":"Main Menu","index":0,"n_rows":1,"n_cols":23,"rows_kept":1,"cut":false,"hidden":false,"merged":[]}
[null,null,null,null,null,null,"Crossroad Tiles - a puzzle by Robin Glynn © November 2014",null,null,null,null,null,null,null,null,null,null,null,null,null,null,null,"www.glynnconsulting.co.uk"]

{"sheet":"Game 2x2","index":1,"n_rows":17,"n_cols":13,"rows_kept":17,"cut":false,"hidden":false,"merged":[]}
[]
[]
[]
[]
[]
[null,null,null,null,null,null,null,null,null,null,null,null,0]
[]
[]
[null,{"$f":"IF(AND(J9=K9,J10=K10,J9=J10),1,0)","v":0},null,null,null,null,null,{"$f":"IF(EasyMoves>0,\"Moves: \"&EasyMoves,\"\")","v":""},null,4,5]
[null,{"$f":"IF(AND(H11=I11,H12=I12,H11=H12),1,0)","v":0},null,null,null,null,null,null,null,3,1]
[null,{"$f":"IF(AND(J11=K11,J12=K12,J11=J12),1,0)","v":0},null,null,null,null,null,5,5,4,4,2,5]
[null,{"$f":"IF(AND(L11=M11,L12=M12,L11=L12),1,0)","v":0},null,null,null,null,null,1,2,4,3,1,1]
[null,{"$f":"IF(AND(J13=K13,J14=K14,J13=J14),1,0)","v":0},null,null,null,null,null,null,null,3,2]
[null,{"$f":"SUM(B9:B13)","v":0},null,null,null,null,null,null,null,3,2,{"$f":"IF($B$14=5,\"Game solved!\",\"\")","v":""}]
[]
[]
[null,null,null,null,null,{"$f":"IF(B14=5,\"The Game is solved\",\"\")","v":""}]

{"sheet":"Game 3x3","index":2,"n_rows":21,"n_cols":16,"rows_kept":21,"cut":false,"hidden":false,"merged":[]}
[]
[]
[]
[]
[]
[]
[null,null,null,null,null,null,null,null,null,null,null,null,null,null,null,0]
[]
[null,{"$f":"IF(AND(K9=L9,L9=M9),1,0)","v":0},{"$f":"IF(AND(K9=K10,K10=K11,K12=K13,K13=K14,H12=H13,H13=H14,N12=N13,N13=N14,K15=K16,K16=K17),1,0)","v":0},null,null,null,{"$f":"IF($B$21=16,\"Game solved!\",\"\")","v":""},{"$f":"IF(HardMoves>0,\"Moves: \"&HardMoves,\"\")","v":""},null,null,2,5,4]
[null,0,null,null,null,null,null,null,null,null,3,1,2]
[null,0,null,null,null,null,null,null,null,null,4,5,3]
[{"$f":"IF(AND(H12=I12,I12=J12),1,0)","v":0},0,{"$f":"IF(AND(N12=O12,O12=P12),1,0)","v":0},null,null,null,null,5,3,4,3,5,2,3,2,1]
[{"$f":"IF(AND(H13=I13,I13=J13),1,0)","v":0},0,{"$f":"IF(AND(N13=O13,O13=P13),1,0)","v":0},null,null,null,null,2,1,1,5,3,5,1,2,2]
[{"$f":"IF(AND(H14=I14,I14=J14),1,0)","v":0},0,{"$f":"IF(AND(N14=O14,O14=P14),1,0)","v":0},null,null,null,null,3,5,3,1,1,3,2,4,4]
[null,0,null,null,null,null,null,null,null,null,4,4,5]
[null,0,null,null,null,null,null,null,null,null,4,1,4,{"$f":"IF($B$21=16,\"Game solved!\",\"\")","v":""}]
[null,0,null,null,null,null,null,null,null,null,2,5,1]
[]
[]
[null,null,null,null,null,{"$f":"IF(B17=5,\"The Game is solved\",\"\")","v":""}]
[null,{"$f":"SUM(A9:C17)","v":0}]

{"sheet":"Game 4x4","index":3,"n_rows":24,"n_cols":19,"rows_kept":24,"cut":false,"hidden":false,"merged":[]}
[]
[]
[]
[]
[]
[]
[null,null,null,null,null,null,null,null,null,null,null,null,null,null,null,null,null,null,0]
[]
[null,{"$f":"IF(AND(L9=M9,M9=N9,N9=O9),1,0)","v":0},{"$f":"IF(AND(L9=L10,L10=L11,L11=L12,L13=L14,L14=L15,L15=L16,L17=L18,L18=L19,L19=L20,H13=H14,H14=H15,H15=H16,P13=P14,P14=P15,P15=P16),1,0)","v":0},null,null,null,null,{"$f":"IF(VeryHardMoves>0,\"Moves: \"&VeryHardMoves,\"\")","v":""},null,null,null,4,3,2,2]
[null,{"$f":"IF(AND(L10=M10,M10=N10,N10=O10),1,0)","v":0},null,null,null,null,null,null,null,null,null,4,5,4,2]
[null,0,null,null,null,null,null,null,null,null,null,3,2,4,3]
[null,0,null,null,null,null,null,null,null,null,null,3,1,2,1]
[{"$f":"IF(AND(H13=I13,I13=J13,J13=K13),1,0)","v":0},0,{"$f":"IF(AND(P13=Q13,Q13=R13,R13=S13),1,0)","v":0},null,null,null,null,1,2,5,3,5,5,4,5,1,2,3,4]
[{"$f":"IF(AND(H14=I14,I14=J14,J14=K14),1,0)","v":0},0,{"$f":"IF(AND(P14=Q14,Q14=R14,R14=S14),1,0)","v":0},null,null,null,null,5,5,1,5,4,1,3,2,3,1,4,2]
[0,0,0,null,null,null,null,4,4,1,4,2,3,5,4,3,1,4,3]
[0,0,0,null,null,null,null,4,5,1,5,4,2,1,1,3,5,1,2]
[null,0,null,null,null,null,null,null,null,null,null,3,3,1,4]
[null,0,null,null,null,null,null,null,null,null,null,5,2,3,5]
[null,0,null,null,null,null,null,null,null,null,null,2,2,3,5]
[null,0,null,null,null,null,null,null,null,null,null,1,2,5,1,{"$f":"IF($B$24=21,\"Game solved!\",\"\")","v":""}]
[]
[]
[null,null,null,null,null,{"$f":"IF(B20=5,\"The Game is solved\",\"\")","v":""}]
[null,{"$f":"SUM(A9:C20)","v":0}]

{"sheet":"How to play","index":4,"n_rows":38,"n_cols":21,"rows_kept":38,"cut":false,"hidden":false,"merged":[[27,10,28,14]]}
[]
[]
[]
[null,null,null,null,"The aim is to unscramble the puzzle so this..",null,null,null,null,null,null,null,null,"…becomes this",null,null,null,null,null,null,"…or this"]
[]
[]
[]
[]
[]
[]
[]
[null,null,null,null,null,null,null,null,null,null,null,null,null,null,null,"(It does not matter what order the squares are in)"]
[]
[null,null,null,null,"There are only 4 moves…"]
[]
[null,null,null,null,null,null,null,null,null,null,"Up, Down, Left, Right"]
[]
[null,null,null,null,null,null,null,null,null,null,null,"You can move one square in any direction using the arrow keys"]
[]
[]
[]
[]
[]
[null,null,null,null,"If you use the mouse to move, you can move more than 1 square in a given direction…"]
[]
[]
[]
[null,null,null,null,null,null,null,null,null,null,"Moves 3 squares to the right"]
[]
[]
[]
[]
[]
[null,null,null,null,"To scramble the squares, either click the shuffle button"]
[null,null,null,null,"or press the 'Home' key on your keyboard"]
[]
[]
[null,null,null,null,"That's all there is to it. Happy puzzling!"]